bitfinex/quotes_SOLUSD_20260302
["timestamp","ask_amount","ask_price","bid_price","bid_amount"]
[1772414103862,2.24203085,85.879,85.84,7.44465681]
[1772414104071,9.68668766,85.87,85.84,7.44465681]
[1772414104290,2.24203085,85.867,85.84,7.44465681]
[1772414104455,2.24203085,85.889,85.86,7.44465681]
[1772414104651,2.24203085,85.888,85.85,7.44465681]
[1772414104959,2.24203085,85.888,85.85,9.60071316]
[1772414105672,2.24203085,85.888,85.86,7.44465681]
[1772414106059,2.24203085,85.888,85.85,9.60071316]
[1772414106255,2.24203085,85.877,85.84,7.44465681]
[1772414106562,2.24203085,85.877,85.85,7.44465681]
[1772414107278,2.24203085,85.869,85.831,13.8068585]
[1772414107872,2.24203085,85.869,85.84,7.44465681]
[1772414108259,2.24203085,85.867,85.84,7.44465681]
[1772414108872,2.24203085,85.867,85.809,2.15605635]
[1772414109079,2.24203085,85.859,85.821,2.15605635]
[1772414109384,2.24203085,85.859,85.83,7.44465681]
[1772414109681,11.64578189,85.868,85.85,7.44465681]
[1772414109858,11.64578189,85.868,85.84,7.44465681]
[1772414110358,2.24203085,85.867,85.83,7.44465681]
[1772414110562,2.24203085,85.859,85.83,7.44465681]
[1772414110760,11.64578189,85.868,85.774,2.15605635]
[1772414110761,2.52635399,85.839,85.774,2.15605635]
[1772414110964,14.88931362,85.84,85.68,64.90862724]
[1772414110965,7.44465681,85.8,85.771,2.15605635]
[1772414111274,7.44465681,85.8,85.72,7.44465681]
[1772414111275,7.44465681,85.8,85.78,2.15605635]
[1772414111460,2.24203085,85.789,85.751,2.15605635]
[1772414112273,11.65664195,85.788,85.752,2.15605635]
[1772414112460,7.44465681,85.78,85.752,2.15605635]
[1772414112965,7.44465681,85.79,85.761,2.25934256]
[1772414113171,11.65650607,85.789,85.761,2.25934256]
[1772414113383,2.0957234,85.779,85.74,7.44465681]
[1772414113581,7.44465681,85.78,85.75,7.44465681]
[1772414113796,34.93,85.909,85.741,11.66303168]
[1772414113797,2.31143193,85.828,85.77,7.44465681]
[1772414113963,2.31143193,85.828,85.76,7.44465681]
[1772414113964,2.31143193,85.828,85.79,7.44465681]
[1772414114275,2.31143193,85.828,85.8,7.44465681]
[1772414114588,2.31143193,85.826,85.8,7.44465681]
[1772414114976,2.31143193,85.826,85.792,11.65601804]
[1772414115292,2.31143193,85.826,85.8,7.44465681]
[1772414115577,2.31143193,85.826,85.792,11.65601804]
[1772414115784,2.31143193,85.826,85.79,7.44465681]
[1772414116078,2.31143193,85.826,85.791,11.65623433]
[1772414116382,2.31143193,85.826,85.8,7.44465681]
[1772414116582,2.31143193,85.824,85.8,7.44465681]
[1772414117383,2.31143193,85.824,85.79,19.10096092]
[1772414117563,11.65158883,85.826,85.78,7.44465681]
[1772414117564,2.31143193,85.809,85.78,7.44465681]
[1772414117887,2.31143193,85.809,85.761,11.66031179]
[1772414117888,2.31143193,85.826,85.8,7.44465681]
[1772414118070,2.31143193,85.826,85.81,7.44465681]
[1772414118267,3.69383402,85.877,85.82,7.44465681]
[1772414118466,7.44465681,86.005,85.808,2.10146589]
[1772414118467,7.44465681,85.87,85.83,7.44465681]
[1772414118871,7.44465681,85.86,85.82,7.44465681]
[1772414119382,11.64429022,85.879,85.85,7.44465681]
[1772414119562,40.75501577,85.879,85.84,7.44465681]
[1772414120090,40.75501577,85.879,85.85,7.44465681]
[1772414120383,2.22889853,85.878,85.85,7.44465681]
[1772414120569,2.22889853,85.876,85.85,7.44465681]
[1772414121275,2.22889853,85.869,85.84,7.44465681]
[1772414121468,2.22889853,85.869,85.85,7.44465681]
[1772414121670,2.22889853,85.869,85.84,7.44465681]
[1772414122776,2.22889853,85.867,85.83,7.44465681]
[1772414123685,13.87495168,85.866,85.83,7.44465681]
[1772414123882,2.22889853,85.865,85.84,7.44465681]
[1772414124087,2.22889853,85.865,85.831,11.65080215]
[1772414124667,2.22889853,85.849,85.809,2.10146589]
[1772414124874,2.22889853,85.849,85.82,7.44465681]
[1772414125583,11.64605315,85.866,85.84,7.44465681]
[1772414125782,11.64605315,85.866,85.831,2.10146589]
[1772414126083,11.64605315,85.866,85.84,7.44465681]
[1772414126594,2.22889853,85.871,85.85,7.44465681]
[1772414126595,13.87436492,85.871,85.85,7.44465681]
[1772414126989,13.87436492,85.871,85.84,7.44465681]
[1772414127289,2.22889853,85.869,85.836,2.10146589]
[1772414127673,2.22889853,85.869,85.84,7.44465681]
[1772414127883,11.64578189,85.868,85.84,7.44465681]
[1772414129092,2.22889853,85.867,85.83,19.09549951]
[1772414129584,2.22889853,85.867,85.801,58.27437908]
[1772414129585,2.22889853,85.859,85.82,7.44465681]
[1772414130095,2.22889853,85.839,85.801,13.75629576]
[1772414130589,2.22889853,85.839,85.81,7.44465681]
[1772414130894,2.22889853,85.839,85.801,13.75629576]
[1772414131194,2.22889853,85.839,85.8,19.09961295]
[1772414131597,2.22889853,85.829,85.79,9.5461227]
[1772414131981,11.65120939,85.828,85.8,7.44465681]
[1772414132178,11.65120939,85.828,85.8,6.44465681]
[1772414132384,2.22889853,85.827,85.8,6.44465681]
[1772414132696,2.22889853,85.827,85.792,11.65598755]
[1772414132883,2.22889853,85.827,85.8,7.44465681]
[1772414133482,2.22889853,85.819,85.79,7.44465681]
[1772414133688,2.22889853,85.809,85.772,11.65876368]
[1772414133877,43.0081314,85.828,85.791,2.10146589]
[1772414134201,7.44465681,85.88,85.76,7.44465681]
[1772414134202,11.65060961,85.833,85.81,7.44465681]
[1772414134399,2.22889853,85.829,85.8,7.44465681]
[1772414134694,11.65060961,85.833,85.8,7.44465681]
[1772414134999,2.22889853,85.829,85.793,2.10146589]
[1772414135204,2.22889853,85.829,85.8,7.44465681]
[1772414136100,11.65120939,85.828,85.8,7.44465681]
[1772414136283,2.22889853,85.819,85.78,7.44465681]
[1772414136487,2.22889853,85.819,85.76,7.44465681]
[1772414136488,2.22889853,85.799,85.751,2.10146589]
[1772414136807,2.22889853,85.789,85.751,2.10146589]
[1772414136982,7.44465681,85.8,85.77,7.44465681]
[1772414137377,2.22889853,85.803,85.77,7.44465681]
[1772414137699,7.44465681,85.8,85.77,7.44465681]
[1772414137999,7.44465681,85.8,85.761,2.10146589]
[1772414138186,7.44465681,85.8,85.725,3.69383402]
[1772414138187,11.65514749,85.799,85.77,7.44465681]
[1772414138498,2.22889853,85.798,85.761,11.66031179]
[1772414138699,2.22889853,85.798,85.761,13.76177768]
[1772414139278,2.22889853,85.798,85.762,2.10146589]
[1772414140397,11.65541918,85.797,85.763,11.66003987]
[1772414140778,11.65541918,85.797,85.764,2.10146589]
[1772414141078,11.65541918,85.797,85.77,7.44465681]
[1772414142794,2.22889853,85.818,85.78,7.44465681]
[1772414142994,2.22889853,85.809,85.77,7.44465681]
[1772414143178,2.22889853,85.809,85.771,2.10146589]
[1772414143578,7.44465681,85.79,85.76,7.44465681]
[1772414143979,2.22889853,85.799,85.72,7.44465681]
[1772414143980,2.22889853,85.799,85.77,7.44465681]
[1772414144190,2.22889853,85.808,85.771,11.65895232]
[1772414145109,2.22889853,85.808,85.78,7.44465681]
[1772414145601,11.65406085,85.807,85.773,11.65868047]
[1772414146884,2.22889853,85.806,85.773,11.65868047]
[1772414147396,11.65378922,85.809,85.781,2.17993484]
[1772414148102,2.26231787,85.808,85.773,11.65868047]
[1772414148704,13.91637872,85.807,85.774,2.17993484]
[1772414149004,7.44465681,85.79,85.76,7.44465681]
[1772414149188,2.26231787,85.799,85.76,7.44465681]
[1772414150391,7.44465681,85.79,85.76,7.44465681]
[1772414150706,11.65650607,85.789,85.76,19.10498433]
[1772414150889,2.26231787,85.788,85.76,19.10498433]
[1772414151084,2.26231787,85.788,85.76,11.66032752]
[1772414151305,2.26231787,85.788,85.751,11.66167158]
[1772414151807,7.44465681,85.79,85.761,2.17993484]
[1772414152107,2.26231787,85.798,85.77,7.44465681]
[1772414152404,13.91488493,85.818,85.781,2.17993484]
[1772414152592,5.36086188,85.868,85.76,7.44465681]
[1772414152593,2.26231787,85.828,85.8,7.44465681]
[1772414152790,11.65035702,85.835,85.802,2.17993484]
[1772414153307,2.26231787,85.834,85.802,2.17993484]
[1772414153611,2.26231787,85.834,85.81,7.44465681]
[1772414153990,2.26231787,85.834,85.802,2.17993484]
[1772414154192,2.26231787,85.834,85.81,7.44465681]
[1772414154707,2.26231787,85.834,85.802,2.17993484]
[1772414154907,2.26231787,85.834,85.803,11.65460415]
[1772414155206,7.44465681,85.83,85.8,7.44465681]
[1772414155386,2.26231787,85.829,85.8,7.44465681]
[1772414155587,2.26231787,85.829,85.79,7.44465681]
[1772414155890,2.26231787,85.819,85.79,7.44465681]
[1772414156906,2.26231787,85.819,85.8,7.44465681]
[1772414157109,2.26231787,85.819,85.791,11.65623433]
[1772414157290,2.26231787,85.829,85.8,7.44465681]
[1772414157482,11.65014167,85.836,85.801,2.17993484]
[1772414157690,2.26231787,85.835,85.801,2.17993484]
[1772414158413,2.26231787,85.829,85.8,7.44465681]
[1772414158908,2.26231787,85.835,85.802,11.65473998]
[1772414159409,2.26231787,85.848,85.811,2.17993484]
[1772414159609,2.26231787,85.848,85.82,7.44465681]
[1772414159814,13.91086445,85.848,85.82,7.44465681]
[1772414160394,2.26231787,85.839,85.8,7.44465681]
[1772414160595,7.44465681,85.83,85.8,7.44465681]
[1772414160810,2.26231787,85.827,85.8,7.44465681]
[1772414161523,2.26231787,85.839,85.81,7.44465681]
[1772414161813,11.64985204,85.838,85.81,7.44465681]
[1772414162036,7.44465681,85.86,85.821,2.17993484]
[1772414162320,11.64578189,85.868,85.85,7.44465681]
[1772414162702,2.26231787,85.867,85.84,7.44465681]
[1772414162897,2.26231787,85.865,85.833,11.65051779]
[1772414163106,2.26231787,85.859,85.823,11.65188818]
[1772414163401,2.26231787,85.859,85.82,7.44465681]
[1772414164105,2.26231787,85.859,85.83,7.44465681]
[1772414164296,2.26231787,85.859,85.82,7.44465681]
[1772414164501,2.26231787,85.859,85.82,7.4483594]
[1772414164710,2.26231787,85.849,85.814,11.65311021]
[1772414164902,2.26231787,85.847,85.814,11.65311021]
[1772414165800,9.71067727,85.84,85.81,7.4483594]
[1772414166200,2.26231787,85.839,85.809,11.65366357]
[1772414166497,2.26231787,85.839,85.8,7.4483594]
[1772414166498,2.26231787,85.829,85.8,7.4483594]
[1772414166702,2.26231787,85.829,85.801,11.65487581]
[1772414167098,9.71067727,85.84,85.81,7.4483594]
[1772414167298,11.65487581,86.011,85.801,40.79206535]
[1772414167299,2.26231787,85.848,85.82,7.4483594]
[1772414168303,19.0966076,85.85,85.82,9.62829424]
[1772414168505,19.0966076,85.85,85.821,11.65215972]
[1772414168730,11.6482482,85.85,85.821,13.83209456]
[1772414169016,2.26231787,85.879,85.831,2.17993484]
[1772414169221,2.26231787,85.879,85.821,40.78255903]
[1772414169222,2.26231787,85.888,85.86,7.4483594]
[1772414169421,11.64022395,85.909,85.871,2.17993484]
[1772414169624,2.26231787,85.908,85.88,7.4483594]
[1772414169806,7.33226981,85.91,85.89,7.4483594]
[1772414170016,2.46231787,85.92,85.89,7.4483594]
[1772414170525,0.2,85.92,85.89,7.4483594]
[1772414170727,0.2,85.92,85.891,11.64266337]
[1772414170907,11.63898608,85.919,85.891,11.64266337]
[1772414171107,0.2,85.92,85.9,7.4483594]
[1772414172005,0.2,85.92,85.891,11.64266337]
[1772414172205,0.2,85.92,85.901,2.17993484]
[1772414172408,0.2,85.92,85.91,7.4483594]
[1772414172613,0.2,85.92,85.903,11.64101145]
[1772414172813,0.2,85.92,85.91,7.4483594]
[1772414173014,11.63664324,85.936,85.91,7.4483594]
[1772414174119,2.17344242,85.933,85.9,7.4483594]
[1772414174310,2.17344242,85.929,85.9,7.4483594]
[1772414174508,2.17344242,85.909,85.87,7.4483594]
[1772414174713,40.7289315,85.934,85.87,7.4483594]
[1772414174714,2.17344242,85.899,85.87,7.4483594]
[1772414175630,2.17344242,85.909,85.87,7.4483594]
[1772414175927,2.17344242,85.899,85.87,7.4483594]
[1772414176128,19.0870931,85.92,85.89,7.4483594]
[1772414176430,21.26053552,85.92,85.881,2.19487722]
[1772414176614,50.35736978,85.92,85.881,2.19487722]
[1772414176807,50.35736978,85.92,85.88,7.4483594]
[1772414176808,7.4483594,85.91,85.88,7.4483594]
[1772414177117,2.17344242,85.92,85.89,7.4483594]
[1772414177317,2.17344242,85.92,85.9,7.4483594]
[1772414177910,13.81217612,85.92,85.89,2.18496916]
[1772414178111,50.35736978,85.92,85.88,9.63332856]
[1772414178431,50.35736978,85.92,85.88,19.09239911]
[1772414178633,7.4483594,85.91,85.88,7.4483594]
[1772414178836,50.35736978,85.92,85.88,7.4483594]
[1772414179417,21.26053552,85.92,85.881,11.64401904]
[1772414179636,21.26053552,85.92,85.89,7.4483594]
[1772414180232,21.26053552,85.92,85.882,2.18496916]
[1772414180615,2.14721495,85.919,85.89,7.4483594]
[1772414180820,2.14721495,85.919,85.883,11.64374788]
[1772414181339,2.14721495,85.919,85.89,7.4483594]
[1772414182238,58.17147647,85.953,85.9,7.4483594]
[1772414182239,9.59557435,85.93,85.9,7.4483594]
[1772414182438,7.4483594,85.92,85.89,7.4483594]
[1772414182733,2.14721495,85.929,85.89,7.4483594]
[1772414183138,58.17147647,85.953,85.9,7.4483594]
[1772414183139,2.14721495,85.927,85.9,7.4483594]
[1772414183437,2.14721495,85.929,85.9,7.4483594]
[1772414185020,13.78337548,85.939,85.91,7.4483594]
[1772414185418,2.14721495,85.938,85.91,7.4483594]
[1772414185645,2.14721495,85.938,85.911,11.63995297]
[1772414186333,2.14721495,85.938,85.901,2.18496916]
[1772414186542,11.63616053,85.939,85.901,2.18496916]
[1772414186543,7.4483594,85.93,85.901,2.18496916]
[1772414186740,13.78337548,85.939,85.901,2.18496916]
[1772414187123,13.78337548,85.939,85.892,40.74884738]
[1772414187124,11.63643133,85.937,85.91,7.4483594]
[1772414187324,2.14721495,85.938,85.91,7.4483594]
[1772414187541,13.78357376,85.938,85.91,7.4483594]
[1772414187732,7.4483594,85.93,85.902,11.64117249]
[1772414188240,2.14721495,85.929,85.894,2.18496916]
[1772414188541,2.14721495,85.929,85.843,5.36086188]
[1772414188542,2.14721495,85.919,85.89,7.4483594]
[1772414189444,13.78610019,85.919,85.891,11.64266337]
[1772414189650,2.14721495,85.918,85.891,11.64266337]
[1772414189845,2.14721495,85.918,85.89,7.4483594]
[1772414190145,2.14721495,85.909,85.873,11.64510381]
[1772414190535,2.14721495,85.909,85.88,7.4483594]
[1772414190926,13.7806681,85.959,85.901,2.18496916]
[1772414191221,2.14721495,85.959,85.93,7.4483594]
[1772414191422,2.14721495,85.981,85.95,7.4483594]
[1772414191623,11.63126985,85.976,85.95,7.4483594]
[1772414191830,13.77778595,85.981,85.95,7.4483594]
[1772414192125,2.14721495,85.981,85.95,7.4483594]
[1772414192330,11.63141924,85.975,85.95,7.4483594]
[1772414192536,7.4483594,85.98,85.95,7.4483594]
[1772414192734,13.77774771,85.981,85.95,7.4483594]
[1772414193138,2.14721495,85.981,85.96,7.4483594]
[1772414193341,11.62712999,86.006,85.963,2.18496916]
[1772414193636,2.14721495,85.989,85.951,2.18496916]
[1772414193844,2.14721495,85.979,85.94,7.4483594]
[1772414194042,7.4483594,85.97,85.94,7.4483594]
[1772414194351,2.14721495,85.969,85.94,7.4483594]
[1772414194854,2.14721495,85.969,85.933,2.18496916]
[1772414195058,2.14721495,85.969,85.94,7.4483594]
[1772414195441,2.14721495,85.969,85.941,11.63588973]
[1772414195630,2.14721495,85.959,85.923,11.6382259]
[1772414195833,7.4483594,85.95,85.923,11.6382259]
[1772414196057,2.14721495,85.959,85.93,7.4483594]
[1772414196656,2.14721495,85.969,85.94,7.4483594]
[1772414197348,2.14721495,85.959,85.93,7.4483594]
[1772414197554,2.14721495,85.969,85.94,7.4483594]
[1772414197745,13.77848978,85.976,85.95,7.4483594]
[1772414198049,13.77692141,85.987,85.96,7.4483594]
[1772414198243,2.14721495,85.986,85.95,9.63332856]
[1772414198448,2.14721495,85.969,85.94,7.4483594]
[1772414200184,13.77939307,85.969,85.941,11.63588973]
[1772414200750,2.14721495,85.968,85.94,7.4483594]
[1772414202034,2.14721495,85.966,85.94,7.4483594]
[1772414202247,2.14721495,85.966,85.93,19.08565862]
[1772414202455,2.14721495,85.959,85.925,11.63798303]
[1772414203350,40.71329696,85.967,85.92,7.4483594]
[1772414203351,2.14721495,85.949,85.92,7.4483594]
[1772414203746,40.71329696,85.967,85.866,2.18496916]
[1772414203747,2.14721495,85.929,85.866,2.18496916]
[1772414204051,2.14721495,85.889,85.827,2.18496916]
[1772414204229,7.4483594,85.87,85.84,7.4483594]
[1772414204428,2.14721495,85.89,85.86,7.4483594]
[1772414204634,7.4483594,85.9,85.851,2.18496916]
[1772414204635,2.14721495,85.899,85.87,7.4483594]
[1772414205030,9.59557435,85.91,85.88,7.4483594]
[1772414205462,11.64022395,85.909,85.88,7.4483594]
[1772414205661,2.14721495,85.91,85.88,7.4483594]
[1772414205842,21.23576005,85.91,85.88,7.4483594]
[1772414206041,2.14721495,85.91,85.881,11.64401904]
[1772414206236,9.59557435,85.91,85.871,2.18496916]
[1772414206552,2.14721495,85.908,85.871,13.83027026]
[1772414206948,2.29204522,85.924,85.9,7.4483594]
[1772414207151,2.29204522,85.924,85.89,7.4483594]
[1772414207357,2.29204522,85.924,85.9,7.4483594]
[1772414207543,2.29204522,85.909,85.88,7.4483594]
[1772414207942,2.29204522,85.899,85.861,2.13889428]
[1772414208145,11.64171459,85.898,85.863,2.13889428]
[1772414208341,2.29204522,85.923,85.89,7.4483594]
[1772414208537,12.81220248,86.071,85.862,40.76308495]
[1772414208538,2.29204522,85.934,85.91,7.4483594]
[1772414208750,40.72371864,85.945,85.89,7.4483594]
[1772414208751,2.29204522,85.929,85.89,7.4483594]
[1772414209363,2.29204522,85.909,85.87,9.58725368]
[1772414209672,2.29204522,85.909,85.88,7.4483594]
[1772414209966,2.29204522,85.909,85.871,2.13889428]
[1772414210145,7.4483594,85.9,85.87,7.4483594]
[1772414210462,13.93240467,85.908,85.87,7.4483594]
[1772414210463,2.29204522,85.907,85.87,7.4483594]
[1772414210656,7.4483594,85.9,85.87,7.4483594]
[1772414211854,2.29204522,85.898,85.789,9.25156613]
[1772414212063,2.29204522,85.879,85.842,2.13889428]
[1772414212658,7.4483594,85.87,85.841,11.6494449]
[1772414213060,7.4483594,85.86,85.83,7.4483594]
[1772414213265,7.4483594,85.85,85.824,11.65166463]
[1772414213559,2.29204522,85.859,85.83,7.4483594]
[1772414213756,2.29204522,85.859,85.82,7.4483594]
[1772414213757,7.4483594,85.85,85.82,7.4483594]
[1772414214142,11.64835932,85.849,85.82,7.4483594]
[1772414214359,7.4483594,85.84,85.819,11.65236279]
[1772414214565,7.4483594,85.84,85.811,11.65349396]
[1772414214770,7.4483594,85.83,85.81,0.1]
[1772414215144,7.4483594,85.84,85.81,0.1]
[1772414215968,7.4483594,85.84,85.81,19.20190479]
[1772414216144,2.29204522,85.85,85.82,7.4483594]
[1772414216145,9.74040462,85.85,85.82,7.4483594]
[1772414216344,21.38869113,85.85,85.81,48.33603834]
[1772414216562,7.4483594,85.84,85.81,19.20190479]
[1772414216767,21.38869113,85.85,85.81,19.20190479]
[1772414217277,7.4483594,85.84,85.81,0.1]
[1772414218161,29.12089832,85.849,85.81,0.1]
[1772414218465,7.4483594,85.84,85.81,7.5483594]
[1772414218650,11.64835932,85.849,85.81,7.5483594]
[1772414218651,7.4483594,85.83,85.81,0.1]
[1772414219355,2.29204522,85.839,85.81,0.1]
[1772414220062,2.29204522,85.829,85.81,0.1]
[1772414220263,7.4483594,85.83,85.81,0.1]
[1772414220264,2.29204522,85.827,85.81,0.1]
[1772414220461,2.29204522,85.827,85.79,19.20466356]
[1772414220462,2.29204522,85.819,85.79,0.1]
[1772414220668,2.29204522,85.799,85.755,11.66112763]
[1772414220969,2.29204522,85.769,85.74,7.4483594]
[1772414221166,2.29204522,85.769,85.72,7.4483594]
[1772414221167,7.4483594,85.75,85.743,1e-08]
[1772414221553,0.80954496,85.758,85.743,1e-08]
[1772414221856,2.29204522,85.749,85.743,1e-08]
[1772414222370,7.4483594,85.75,85.743,1e-08]
[1772414222691,0.80954496,85.758,85.743,1e-08]
[1772414222853,7.4483594,85.75,85.743,1e-08]
[1772414224072,0.80954496,85.749,85.743,1e-08]
[1772414224272,11.66207958,85.748,85.743,1e-08]
[1772414224673,0.80954496,85.749,85.743,1e-08]
[1772414225197,11.66207958,85.748,85.743,1e-08]
[1772414225348,2.29204522,85.747,85.697,11.66892799]
[1772414225554,2.29204522,85.729,85.695,11.66918516]
[1772414225760,2.29204522,85.729,85.7,700.9248695]
[1772414225951,2.29204522,85.729,85.7,693.458504]
[1772414226147,2.29204522,85.719,85.7,693.458504]
[1772414227277,7.4663655,85.71,85.7,693.458504]
[1772414227577,2.29204522,85.725,85.7,693.458504]
[1772414227771,7.4663655,85.72,85.7,693.458504]
[1772414227976,9.75841072,85.72,85.7,693.458504]
[1772414228374,2.29204522,85.719,85.7,693.458504]
[1772414228678,2.29204522,85.749,85.711,2.13889428]
[1772414228854,7.4663655,85.74,85.71,7.4663655]
[1772414229053,9.75841072,85.73,85.7,693.458504]
[1772414229353,7.4663655,85.71,85.7,693.458504]
[1772414229873,7.4663655,85.71,85.7,688.70821382]
[1772414230066,7.4663655,85.71,85.7,686.59552733]
[1772414230276,40.81592135,85.751,85.701,2.37577236]
[1772414230455,7.4663655,85.74,85.703,11.66820298]
[1772414230654,11.66330374,85.739,85.704,2.37577236]
[1772414231084,7.4663655,85.74,85.704,2.37577236]
[1772414231294,11.66330374,85.739,85.704,2.37577236]
[1772414231573,7.4663655,85.73,85.704,2.37577236]
[1772414232684,11.66466423,85.729,85.704,2.37577236]
[1772414232874,7.4663655,85.72,85.704,2.37577236]
[1772414233272,7.4663655,85.71,85.7,686.59552733]
[1772414233474,11.66466423,85.729,85.701,2.37577236]
[1772414233672,7.4663655,85.73,85.702,2.37577236]
[1772414234681,7.4663655,85.74,85.704,2.37577236]
[1772414235187,7.4663655,85.74,85.711,2.37577236]
[1772414235882,11.66330374,85.739,85.711,2.37577236]
[1772414236177,7.4663655,85.73,85.711,2.37577236]
[1772414236687,7.4663655,85.74,85.713,2.37577236]
[1772414237389,19.12956072,85.74,85.713,2.37577236]
[1772414237886,11.66319522,85.74,85.702,2.37577236]
[1772414238069,11.66319522,85.74,85.7,686.59552733]
[1772414238070,11.66245377,85.746,85.711,2.37577236]
[1772414238272,7.4663655,85.75,85.711,2.37577236]
[1772414238478,7.4663655,85.76,85.721,2.37577236]
[1772414238781,7.4663655,85.75,85.731,2.37577236]
[1772414238984,11.66058372,85.759,85.731,2.37577236]
[1772414239582,7.4663655,85.76,85.731,2.37577236]
[1772414239775,7.4663655,85.76,85.701,58.3423764]
[1772414239776,7.4663655,85.76,85.733,2.37577236]
[1772414240973,7.4663655,85.76,85.723,29.16362106]
[1772414240974,7.4663655,85.74,85.723,2.37577236]
[1772414241178,7.4663655,85.74,85.702,2.37577236]
[1772414242081,7.4663655,85.74,85.711,2.37577236]
[1772414242476,7.4663655,85.76,85.721,2.37577236]
[1772414243081,7.4663655,85.75,85.723,2.37577236]
[1772414243391,99.07517159,85.794,85.701,87.5135646]
[1772414243392,7.4663655,85.74,85.713,2.37577236]
[1772414243597,7.4663655,85.74,85.714,14.04247791]
[1772414243769,7.4663655,85.74,85.715,2.37577236]
[1772414244396,7.4663655,85.75,85.715,2.37577236]
[1772414245391,7.4663655,85.75,85.717,2.37577236]
[1772414245700,7.4663655,85.76,85.731,2.37577236]
[1772414245887,7.4663655,85.75,85.731,2.37577236]
[1772414246083,7.4663655,85.75,85.711,11.66704205]
[1772414246591,7.4663655,85.74,85.71,7.4663655]
[1772414246794,2.21073541,85.758,85.72,7.4663655]
[1772414246795,7.4663655,85.75,85.72,7.4663655]
[1772414246979,2.21073541,85.758,85.711,11.6671139]
[1772414246980,7.4663655,85.74,85.711,11.6671139]
[1772414247379,7.4663655,85.75,85.711,11.6671139]
[1772414247590,11.66194357,85.749,85.711,11.6671139]
[1772414247791,2.21073541,85.77,85.73,7.4663655]
[1772414248103,7.4663655,85.75,85.721,2.28251675]
[1772414248493,7.4663655,85.74,85.721,2.28251675]
[1772414249001,7.4663655,85.75,85.721,2.28251675]
[1772414249395,7.4663655,85.76,85.721,2.28251675]
[1772414250395,7.4663655,85.77,85.731,2.28251675]
[1772414250598,7.4663655,85.76,85.731,2.28251675]
[1772414251882,11.65876811,85.773,85.731,2.28251675]
[1772414252084,7.4663655,85.76,85.731,2.28251675]
[1772414252284,11.66058372,85.759,85.732,2.28251675]
[1772414252727,7.4663655,85.77,85.741,2.28251675]
[1772414252998,7.4663655,85.76,85.741,2.28251675]
[1772414253386,7.4663655,85.76,85.731,13.94680636]
[1772414253586,7.4663655,85.75,85.731,2.28251675]
[1772414254106,7.4663655,85.76,85.731,2.28251675]
[1772414254586,7.4663655,85.75,85.731,2.28251675]
[1772414255191,7.4663655,85.74,85.722,2.28251675]
[1772414255595,7.4663655,85.75,85.722,2.28251675]
[1772414255920,58.2866069,85.783,85.684,3.69383402]
[1772414255921,7.4663655,85.77,85.731,2.28251675]
[1772414256302,7.4663655,85.77,85.741,2.28251675]
[1772414256510,7.4663655,85.76,85.73,7.4663655]
[1772414256695,2.21073541,85.739,85.701,11.66847528]
[1772414257017,7.4663655,85.72,85.692,11.66967404]
[1772414257396,7.4663655,85.72,85.69,0.1]
[1772414257616,7.4663655,85.72,85.701,11.66847528]
[1772414257803,2.21073541,85.719,85.69,0.1]
[1772414258003,7.4663655,85.72,85.691,11.66977124]
[1772414258209,2.21073541,85.719,85.691,11.66977124]
[1772414258413,2.21073541,85.719,85.69,11.76987705]
[1772414258616,11.66616113,85.718,85.69,11.76987705]
[1772414258993,7.4663655,85.71,85.69,0.1]
[1772414259596,7.4663655,85.71,85.7,619.97459688]
[1772414259997,11.66616113,85.718,85.7,619.97459688]
[1772414260234,7.4663655,85.71,85.7,619.97459688]
[1772414261012,11.66738615,85.709,85.7,495.69829841]
[1772414261597,7.4663655,85.71,85.7,495.69829841]
[1772414262409,7.4663655,85.71,85.7,433.14460763]
[1772414263513,11.66738615,85.709,85.7,433.14460763]
[1772414263828,11.66738615,85.709,85.7,245.39803059]
[1772414264309,58.44579155,85.73,85.7,245.39803059]
[1772414264310,11.66625749,85.718,85.7,245.39803059]
[1772414264504,7.4663655,85.71,85.7,245.39803059]
[1772414265332,29.16707033,85.714,85.7,107.93517926]
[1772414265625,7.4663655,85.71,85.7,46.41631607]
[1772414265824,7.4663655,85.71,85.69,0.1]
[1772414266316,7.4663655,85.71,85.691,2.37043649]
[1772414267303,11.66738615,85.709,85.691,2.37043649]
[1772414269003,7.4663655,85.71,85.691,2.37043649]
[1772414269515,11.66738615,85.709,85.691,2.37043649]
[1772414270109,7.4663655,85.71,85.692,11.66970078]
[1772414270305,7.4663655,85.71,85.693,2.38903705]
[1772414270910,7.4663655,85.72,85.693,2.38903705]
[1772414271118,7.4663655,85.71,85.693,2.38903705]
[1772414271706,7.4663655,85.72,85.695,2.38903705]
[1772414272104,0.50125524,85.718,85.69,2.48903705]
[1772414272309,40.82787074,85.726,85.69,2.48903705]
[1772414272310,7.4663655,85.71,85.69,2.48903705]
[1772414272937,7.4663655,85.72,85.692,2.38903705]
[1772414273318,7.4663655,85.73,85.692,2.38903705]
[1772414273826,3.69383402,85.747,85.69,0.1]
[1772414273827,7.4663655,85.71,85.69,0.1]
[1772414274707,8.54197153,85.71,85.69,0.1]
[1772414275022,2.48760935,85.699,85.68,0.2]
[1772414275252,8.54197153,85.69,85.68,0.2]